bitfinex/quotes_BTCUSD_20260310
["timestamp","ask_amount","ask_price","bid_price","bid_amount"]
[1773149694014,0.00156,70376.0,70355.0,0.00048]
[1773149694180,0.03,70372.0,70335.0,0.00156]
[1773149694382,0.00023,70375.0,70329.0,0.00156]
[1773149694383,0.03,70366.0,70329.0,0.00156]
[1773149694619,0.03,70362.0,70329.0,0.23244008]
[1773149694839,0.03,70362.0,70325.0,0.00477285]
[1773149694840,0.00156,70365.0,70325.0,0.00023]
[1773149694841,0.03,70355.0,70325.0,0.00023]
[1773149695014,0.03,70355.0,70311.0,0.00156]
[1773149695015,0.19335513,70340.0,70304.0,0.00048]
[1773149695285,0.00023,70350.0,70305.0,0.07111869]
[1773149695286,0.07109139,70332.0,70305.0,0.07111869]
[1773149695437,0.03,70325.0,70297.0,0.0006747]
[1773149695791,0.03,70317.0,70297.0,0.0006747]
[1773149696014,0.03,70317.0,70283.0,0.00454285]
[1773149696016,0.16195446,70320.0,70255.0,0.00736428]
[1773149696017,0.18845999,70298.0,70255.0,0.00736428]
[1773149696236,0.09328316,70287.0,70255.0,0.00736428]
[1773149696376,0.00562,70292.0,70261.0,0.00454285]
[1773149696701,0.00156,70291.0,70263.0,0.1597866]
[1773149696861,0.00156,70291.0,70264.0,0.0014232]
[1773149697059,0.00156,70291.0,70266.0,0.00498039]
[1773149697263,0.00156,70291.0,70268.0,0.07115614]
[1773149697264,0.00037736,70291.0,70268.0,0.07115614]
[1773149697469,0.00172216,70292.0,70274.0,0.67439]
[1773149697720,0.03,70299.0,70274.0,0.67439]
[1773149697721,0.03,70299.0,70278.0,0.00498039]
[1773149697938,0.03,70299.0,70282.0,0.1597866]
[1773149698132,0.00023,70300.0,70282.0,0.1597866]
[1773149698133,0.03,70297.0,70282.0,0.16476699]
[1773149698703,0.18845999,70298.0,70283.0,0.00156]
[1773149698830,0.18845999,70298.0,70282.0,0.16476699]
[1773149699053,0.18845999,70298.0,70274.0,0.00037736]
[1773149699252,0.07112679,70297.0,70276.0,0.07114804]
[1773149699446,0.18845999,70298.0,70278.0,0.1597866]
[1773149699648,0.0711176,70307.0,70277.0,0.00156]
[1773149699649,0.03,70308.0,70289.0,0.0002]
[1773149699854,0.03,70308.0,70290.0,0.00156]
[1773149700064,0.03,70308.0,70289.0,0.0002]
[1773149700276,0.03,70308.0,70290.0,0.1613466]
[1773149700478,0.03,70308.0,70290.0,0.1597866]
[1773149700681,0.00156,70315.0,70289.0,0.00518039]
[1773149700682,0.03,70307.0,70291.0,0.00193205]
[1773149700887,0.03,70307.0,70292.0,0.1597866]
[1773149701093,0.03,70307.0,70289.0,0.0002]
[1773149701319,0.03,70307.0,70283.0,0.1597866]
[1773149701320,0.03,70307.0,70267.0,0.171452]
[1773149701321,0.03,70307.0,70275.0,1e-08]
[1773149701322,0.03,70305.0,70275.0,1e-08]
[1773149701536,0.07111768,70306.0,70267.0,0.000852]
[1773149701537,0.03,70298.0,70267.0,0.000852]
[1773149701738,0.03,70292.0,70267.0,0.000852]
[1773149701940,0.00037759,70298.0,70269.0,0.1597866]
[1773149701941,0.03,70290.0,70269.0,0.1597866]
[1773149702198,0.03,70290.0,70265.0,0.07115614]
[1773149702200,0.00037759,70298.0,70251.0,0.0711724]
[1773149702201,0.03,70286.0,70251.0,0.0711724]
[1773149702389,0.03,70286.0,70245.0,0.00498039]
[1773149702390,0.10293978,70287.0,70216.0,0.00012]
[1773149702391,0.16565225,70269.0,70216.0,0.00012]
[1773149702617,0.00023,70250.0,70220.0,0.07921073]
[1773149702824,0.00156,70249.0,70221.0,0.00034256]
[1773149703032,0.00023,70250.0,70225.0,0.102375]
[1773149703033,0.00156,70248.0,70225.0,0.102375]
[1773149703236,0.00156,70248.0,70226.0,0.00120161]
[1773149703392,0.00023,70250.0,70231.0,0.19483738]
[1773149703593,0.00023,70250.0,70220.0,0.0080069]
[1773149703594,0.03,70249.0,70220.0,0.0080069]
[1773149703800,0.03,70249.0,70222.0,0.1595453]
[1773149704020,0.03,70249.0,70220.0,0.07921067]
[1773149704220,0.00156,70248.0,70221.0,0.16074697]
[1773149704455,0.00156,70248.0,70220.0,0.07921067]
[1773149704628,0.03,70246.0,70220.0,0.0080069]
[1773149704967,0.00156,70248.0,70220.0,0.0080069]
[1773149704968,0.03,70242.0,70220.0,0.0080069]
[1773149705276,0.03,70242.0,70220.0,0.0070069]
[1773149705478,0.03,70242.0,70214.0,0.07121025]
[1773149705479,0.03,70242.0,70169.0,0.56921428]
[1773149705481,0.03,70242.0,70180.0,0.42242]
[1773149705482,0.00023,70200.0,70180.0,0.42242]
[1773149705687,0.00023,70200.0,70179.0,0.00156]
[1773149705688,0.00023,70200.0,70175.0,0.00156]
[1773149705689,0.00010996,70200.0,70175.0,0.00156]
[1773149705898,0.03,70204.0,70175.0,0.00156]
[1773149705899,0.03,70204.0,70176.0,0.16572814]
[1773149706113,0.03,70204.0,70176.0,0.1595453]
[1773149706340,0.00562,70208.0,70175.0,0.00023]
[1773149706341,0.00562,70208.0,70183.0,0.218598]
[1773149706559,0.00562,70236.0,70203.0,0.402085]
[1773149706560,0.00156,70235.0,70203.0,0.402085]
[1773149706751,0.00179,70225.0,70204.0,0.1611053]
[1773149706904,0.00179,70225.0,70220.0,0.0002]
[1773149707105,0.00179,70225.0,70203.0,0.00011342]
[1773149707313,0.03,70223.0,70203.0,0.00011342]
[1773149707672,0.07118382,70241.0,70205.0,0.20761967]
[1773149707881,0.00023,70250.0,70205.0,0.20761967]
[1773149707882,0.00023,70250.0,70221.0,0.00498039]
[1773149708093,0.00022001,70258.0,70230.0,0.19440472]
[1773149708297,0.00156,70272.0,70234.0,0.00498039]
[1773149708298,0.07115297,70272.0,70234.0,0.00498039]
[1773149708511,0.03,70271.0,70245.0,0.1595453]
[1773149708727,0.00022001,70265.0,70246.0,0.00156]
[1773149709096,0.03,70271.0,70253.0,0.16452569]
[1773149709328,0.03,70271.0,70253.0,0.15965872]
[1773149709458,0.0711518,70273.0,70255.0,0.16452569]
[1773149709663,0.0713792,70275.0,70255.0,0.16452569]
[1773149709860,0.00023,70275.0,70255.0,0.1595453]
[1773149710076,0.07137998,70275.0,70257.0,0.1595453]
[1773149710265,0.07137998,70275.0,70258.0,0.00156]
[1773149710486,0.03,70272.0,70237.0,0.07118755]
[1773149710820,0.03,70272.0,70236.0,0.07680755]
[1773149710821,0.18859562,70266.0,70236.0,0.07680761]
[1773149710973,0.03,70264.0,70236.0,0.07680761]
[1773149711180,0.03,70262.0,70236.0,0.07680761]
[1773149711414,0.03,70258.0,70236.0,0.07680758]
[1773149712196,0.03,70258.0,70225.0,0.00023]
[1773149712197,0.03,70256.0,70231.0,0.00156]
[1773149712359,0.03,70256.0,70231.0,0.07275292]
[1773149712360,0.00156,70255.0,70231.0,0.07275292]
[1773149712561,0.00156,70255.0,70225.0,0.00023]
[1773149712562,0.00156,70254.0,70225.0,0.00023]
[1773149712861,0.03,70242.0,70208.0,0.00562]
[1773149713095,0.03,70236.0,70208.0,0.00562]
[1773149713303,0.03,70234.0,70208.0,0.00562]
[1773149713503,0.03,70234.0,70200.0,0.00023]
[1773149713504,0.15859562,70229.0,70200.0,0.00023]
[1773149713709,0.03,70228.0,70200.0,0.07145442]
[1773149713925,0.00156,70227.0,70200.0,0.07145442]
[1773149714156,0.00156,70227.0,70196.0,0.07122815]
[1773149714362,0.03,70221.0,70189.0,0.07629795]
[1773149714532,0.15859562,70222.0,70189.0,0.07131756]
[1773149714731,0.15859562,70222.0,70189.0,0.07131757]
[1773149714961,0.03,70219.0,70189.0,8.17e-05]
[1773149715194,0.03,70217.0,70189.0,0.07131732]
[1773149715411,0.00156,70216.0,70189.0,8.17e-05]
[1773149715638,0.03,70212.0,70189.0,8.17e-05]
[1773149715857,0.03,70210.0,70189.0,8.17e-05]
[1773149716050,0.00156,70209.0,70189.0,8.17e-05]
[1773149716798,0.00156,70209.0,70179.0,0.07124333]
[1773149716799,0.19646004,70199.0,70150.0,0.0715038]
[1773149716985,0.00023,70200.0,70157.0,0.004502]
[1773149716986,0.03,70196.0,70157.0,0.004502]
[1773149717125,0.03,70196.0,70163.0,0.10639]
[1773149717126,0.00156,70195.0,70163.0,0.10639]
[1773149717334,0.03,70196.0,70164.0,0.00156]
[1773149717539,0.03,70194.0,70168.0,0.1595453]
[1773149717741,0.03,70194.0,70170.0,0.1595453]
[1773149717742,0.00156,70193.0,70170.0,0.1595453]
[1773149717951,0.03,70194.0,70192.0,0.0002]
[1773149718169,0.00023,70200.0,70192.0,0.00057666]
[1773149718780,0.03,70205.0,70192.0,0.00057666]
[1773149719004,0.00562,70208.0,70192.0,0.00057666]
[1773149719215,0.01612003,70221.0,70192.0,0.00057666]
[1773149719216,0.00156,70218.0,70194.0,0.366189]
[1773149719430,0.00156,70218.0,70197.0,0.652389]
[1773149719648,0.00156,70218.0,70193.0,0.07278912]
[1773149719649,0.00156,70218.0,70180.0,0.00562]
[1773149719650,0.17564132,70215.0,70180.0,0.00562]
[1773149719866,0.17564132,70215.0,70151.0,0.00048]
[1773149719867,0.03,70192.0,70160.0,0.00156]
[1773149720168,0.03,70192.0,70169.0,0.07125638]
[1773149720169,0.00156,70191.0,70169.0,0.07125638]
[1773149720616,0.00156,70191.0,70172.0,0.07125274]
[1773149720892,0.00156,70191.0,70163.0,0.07126251]
[1773149721132,0.00156,70191.0,70152.0,0.07689288]
[1773149721133,0.03,70166.0,70152.0,0.07689317]
[1773149721389,0.00156,70168.0,70152.0,0.07689317]
[1773149721646,0.00156,70168.0,70138.0,0.27890752]
[1773149721647,0.00529142,70166.0,70138.0,0.07128715]
[1773149721907,0.03,70157.0,70140.0,0.1595453]
[1773149722158,0.00156,70167.0,70140.0,0.1595453]
[1773149722380,0.00156,70167.0,70138.0,0.07128715]
[1773149722381,0.787863,70164.0,70142.0,0.1595453]
[1773149722619,0.787863,70164.0,70138.0,0.07128715]
[1773149722848,0.00156,70166.0,70141.0,1.076685]
[1773149723076,0.03037853,70167.0,70141.0,0.994995]
[1773149723304,0.03037853,70167.0,70138.0,0.07128715]
[1773149723559,0.03,70156.0,70140.0,0.07128599]
[1773149724032,0.00156,70158.0,70140.0,0.07128599]
[1773149724272,0.287863,70159.0,70140.0,0.07128599]
[1773149724489,0.00037853,70167.0,70140.0,0.07284599]
[1773149724490,0.287863,70161.0,70140.0,0.07284599]
[1773149724711,0.03,70160.0,70140.0,0.07284599]
[1773149725433,0.00156,70159.0,70140.0,0.07128599]
[1773149725630,0.00156,70160.0,70140.0,0.07128599]
[1773149725860,0.287713,70158.0,70137.0,0.00156]
[1773149726104,0.03,70157.0,70138.0,0.1595453]
[1773149726382,0.07163797,70167.0,70138.0,0.1595453]
[1773149726383,0.00037853,70167.0,70138.0,2.070056]
[1773149726708,0.00037853,70167.0,70137.0,0.00156]
[1773149726709,0.00562,70180.0,70143.0,0.627065]
[1773149726923,0.00562,70180.0,70152.0,0.1595453]
[1773149727150,0.01423349,70187.0,70152.0,0.1595453]
[1773149727151,0.10124009,70186.0,70156.0,0.1595453]
[1773149727418,0.03,70184.0,70154.0,0.1595453]
[1773149727728,0.03,70184.0,70143.0,0.00037853]
[1773149727729,0.116956,70143.0,70127.0,0.0025228]
[1773149727974,0.00037853,70143.0,70128.0,0.07129819]
[1773149728188,0.00037853,70143.0,70127.0,0.07382099]
[1773149728189,0.00037853,70143.0,70127.0,0.0025228]
[1773149728421,0.00037853,70143.0,70127.0,0.0040828]
[1773149728624,0.566081,70149.0,70127.0,0.0753813]
[1773149728828,0.01635003,70175.0,70127.0,0.0753813]
[1773149728829,0.00156,70168.0,70128.0,0.1595453]
[1773149729028,0.566081,70160.0,70133.0,0.1595453]
[1773149729221,0.566081,70160.0,70135.0,0.1765]
[1773149729542,0.566081,70160.0,70127.0,0.07419983]
[1773149729543,0.07126872,70157.0,70137.0,0.07128904]
[1773149729684,0.03,70159.0,70137.0,0.07284904]
[1773149729885,0.03,70159.0,70138.0,0.1595453]
[1773149730088,0.03,70159.0,70139.0,0.17261694]
[1773149730275,0.03,70159.0,70140.0,0.00156]
[1773149730276,0.10126669,70159.0,70140.0,0.00156]
[1773149730482,0.10126669,70159.0,70136.0,0.07128985]
[1773149730483,0.03,70152.0,70136.0,0.07128985]
[1773149730688,0.03,70152.0,70136.0,0.07182293]
[1773149730890,0.03,70152.0,70136.0,0.07128985]
[1773149731300,0.03,70152.0,70137.0,0.00156]
[1773149731516,0.00156,70159.0,70138.0,0.07128803]
[1773149731517,0.03,70151.0,70138.0,0.07128803]
[1773149732571,0.03,70150.0,70138.0,0.07128803]
[1773149732812,0.03,70150.0,70100.0,0.19619059]
[1773149732813,0.03,70150.0,70131.0,0.07285459]
[1773149733048,0.03,70150.0,70132.0,0.07129413]
[1773149733220,0.03,70150.0,70130.0,0.07129413]
[1773149733221,0.00156,70149.0,70130.0,0.07129413]
[1773149733366,0.03,70150.0,70130.0,0.07129413]
[1773149733571,0.07127132,70155.0,70130.0,0.07129413]
[1773149733572,0.00156,70155.0,70130.0,0.07129413]
[1773149733923,0.01612003,70158.0,70132.0,0.01307164]
[1773149734082,0.566081,70155.0,70134.0,0.01307164]
[1773149734282,0.566081,70152.0,70135.0,0.00156]
[1773149734602,0.566081,70152.0,70134.0,0.01307164]
[1773149734807,0.00156,70163.0,70135.0,0.00156]
[1773149735011,0.32226691,70155.0,70136.0,0.16150753]
[1773149735385,0.17972337,70160.0,70137.0,0.17457917]
[1773149735659,0.08738672,70159.0,70138.0,0.07128803]
[1773149735863,0.03,70158.0,70138.0,0.07284803]
[1773149736182,0.03,70156.0,70138.0,0.07284803]
[1773149736576,0.07126378,70162.0,70140.0,0.16150753]
[1773149736786,0.179724,70160.0,70140.0,0.17457917]
[1773149737119,0.07126383,70162.0,70138.0,0.07128803]
[1773149737120,0.03,70150.0,70138.0,0.07128803]
[1773149737720,0.01612003,70160.0,70138.0,0.07128803]
[1773149737952,0.01612003,70161.0,70138.0,0.08435967]
[1773149738257,0.1667686,70175.0,70144.0,0.16150753]
[1773149738258,0.03,70167.0,70144.0,0.16150753]
[1773149738461,0.13125059,70199.0,70141.0,0.21946265]
[1773149738462,0.00156,70178.0,70150.0,0.01307164]
[1773149738699,0.00156,70178.0,70154.0,0.01307164]
[1773149738892,0.07686597,70180.0,70150.0,0.00023]
[1773149739018,0.18265863,70179.0,70150.0,0.00023]
[1773149739235,0.1965386,70178.0,70150.0,0.00023]
[1773149739437,0.03,70172.0,70150.0,0.00023]
[1773149739641,0.07686597,70180.0,70150.0,0.00034292]
[1773149739642,0.1965386,70170.0,70150.0,0.00034292]
[1773149739864,0.1965386,70170.0,70137.0,0.07579003]
[1773149739865,0.03,70162.0,70137.0,0.07128803]
[1773149740072,0.03,70160.0,70135.0,0.07128904]
[1773149740268,0.0001135,70162.0,70135.0,0.07128904]
[1773149740269,0.03,70158.0,70135.0,0.07128904]
[1773149740922,0.03,70158.0,70129.0,0.305348]
[1773149740923,0.03,70156.0,70129.0,0.305348]
[1773149741094,0.00156,70158.0,70120.0,0.001]
[1773149741095,0.00156,70158.0,70126.0,0.06168142]
[1773149741096,0.03,70152.0,70126.0,0.06168142]
[1773149741460,0.04612003,70152.0,70126.0,0.07130023]
[1773149741670,0.04612003,70152.0,70092.0,0.34240209]
[1773149741671,0.04612003,70152.0,70113.0,0.07131281]
[1773149741672,0.03,70146.0,70113.0,0.07131281]
[1773149741880,0.03,70144.0,70121.0,0.07130531]
[1773149742090,0.03,70144.0,70122.0,0.00156]
[1773149742527,0.03,70144.0,70100.0,0.00121]
[1773149742732,0.07284091,70145.0,70113.0,0.00156]
[1773149742733,0.03,70140.0,70113.0,0.00156]
[1773149743150,0.03,70138.0,70114.0,0.00156]
[1773149743382,0.1965386,70136.0,70112.0,0.07146345]
[1773149743590,0.03156,70136.0,70114.0,0.00156]
[1773149743800,0.03156,70136.0,70115.0,0.07131141]
[1773149743801,0.03,70136.0,70115.0,0.07131141]
[1773149744004,0.03011344,70136.0,70118.0,0.16150753]
[1773149744432,0.03,70135.0,70118.0,0.16150753]
[1773149744648,0.07128165,70145.0,70135.0,0.0002]
[1773149744867,0.07128165,70145.0,70135.0,0.00057853]
[1773149745093,0.07128165,70145.0,70129.0,0.00156]
[1773149745317,0.00156,70144.0,70127.0,0.00176]
[1773149745562,0.03156,70144.0,70127.0,0.00176]
[1773149745829,0.07128295,70143.0,70128.0,0.07129819]
[1773149746052,0.03,70142.0,70128.0,0.07129819]
[1773149747408,0.07284241,70144.0,70128.0,0.07129819]
[1773149747409,0.03,70141.0,70129.0,0.00156]
[1773149747739,0.03,70131.0,70130.0,0.00156]
[1773149748053,0.03290825,70132.0,70130.0,0.00156]
[1773149748245,0.07128217,70144.0,70130.0,0.00156]
[1773149748445,0.00037899,70145.0,70130.0,0.00156]
[1773149748820,0.00037899,70145.0,70128.0,0.07129819]
[1773149748821,0.07165992,70145.0,70128.0,0.07129819]
[1773149748974,0.03,70144.0,70128.0,0.07129819]
[1773149749190,0.08777995,70145.0,70113.0,0.07131345]
[1773149749191,0.16565623,70141.0,70113.0,0.07131345]
[1773149749362,0.22757157,70145.0,70113.0,0.07131345]
[1773149749363,0.19565623,70138.0,70116.0,0.00156]
[1773149749558,0.19565623,70138.0,70113.0,0.07131345]
[1773149749559,0.19565623,70136.0,70114.0,0.00156]
[1773149749818,0.00156,70138.0,70113.0,0.07131345]
[1773149749819,0.03,70130.0,70113.0,0.07131345]
[1773149750049,0.03,70130.0,70114.0,0.00156]
[1773149750595,0.03,70130.0,70113.0,0.07131345]
[1773149750836,0.07129441,70132.0,70113.0,0.07131345]
[1773149750837,0.03,70131.0,70113.0,0.07131345]
[1773149751459,0.17000436,70131.0,70113.0,0.07131345]
[1773149751655,0.03,70131.0,70113.0,0.07131345]
[1773149752031,0.03,70131.0,70108.0,0.003019]
[1773149752032,0.03,70127.0,70089.0,5.38e-05]
[1773149752213,0.40628111,70130.0,70096.0,0.07133042]
[1773149752214,0.16565623,70122.0,70096.0,0.07133042]
[1773149752428,0.19565623,70119.0,70096.0,0.07133042]
[1773149752605,0.03,70117.0,70096.0,0.07133042]
[1773149752750,0.19565623,70117.0,70096.0,0.07289042]
[1773149752950,0.03,70115.0,70096.0,0.07289042]
[1773149753152,0.03,70115.0,70096.0,0.00156]
[1773149753153,0.00156,70114.0,70096.0,0.00156]
[1773149753353,0.3421828,70138.0,70099.0,0.1704372]
[1773149753354,0.14000436,70122.0,70099.0,0.1704372]
[1773149753567,0.0712961,70131.0,70103.0,0.1704372]
[1773149753568,0.14000436,70129.0,70103.0,0.1704372]
[1773149753762,0.14000436,70129.0,70099.0,0.00037876]
[1773149753763,0.14000436,70130.0,70105.0,0.1704372]
[1773149753989,0.07129514,70134.0,70105.0,0.1704372]
[1773149753990,0.1096164,70143.0,70108.0,0.00462236]
[1773149754195,0.1096164,70143.0,70106.0,0.07288057]
[1773149754196,0.08740453,70142.0,70114.0,0.00462236]
[1773149754476,0.08740453,70142.0,70116.0,0.00462236]
[1773149754662,0.08740453,70142.0,70116.0,0.17505956]
[1773149755024,0.03,70141.0,70117.0,0.00156]
[1773149755262,0.03,70139.0,70108.0,0.1704372]
[1773149755514,0.01612003,70140.0,70108.0,0.1704372]
[1773149755515,0.01612003,70140.0,70109.0,0.00156]
[1773149755516,0.03,70137.0,70109.0,0.00156]
[1773149755721,0.03,70135.0,70109.0,0.00156]
[1773149755980,0.10129312,70133.0,70111.0,0.00462236]
[1773149756196,0.10129312,70133.0,70114.0,0.1704372]
[1773149756197,0.03,70133.0,70114.0,0.1704372]
[1773149756400,0.10129324,70133.0,70114.0,0.1704372]
[1773149756605,0.07129122,70135.0,70113.0,0.00462236]
[1773149756606,0.03,70131.0,70113.0,0.00462236]
[1773149756953,0.07129413,70133.0,70115.0,0.1704372]
[1773149756954,0.03,70129.0,70115.0,0.1704372]
[1773149757308,0.03,70129.0,70116.0,0.00156]
[1773149757859,0.10129495,70132.0,70117.0,0.07130938]
[1773149758059,0.10129495,70132.0,70107.0,0.07131955]
[1773149758060,0.03,70130.0,70107.0,0.07131955]
[1773149758273,0.03,70130.0,70108.0,0.00156]
[1773149758526,0.00156,70129.0,70108.0,0.00156]
[1773149758737,0.00156,70129.0,70107.0,0.07131955]
[1773149758955,0.00156,70129.0,70100.0,0.07155565]
[1773149758956,0.03,70127.0,70100.0,0.07155565]
[1773149759164,0.03,70123.0,70100.0,0.07155649]
[1773149759306,0.03,70121.0,70101.0,0.00156]
[1773149759514,0.00156,70120.0,70101.0,0.00156]
[1773149759746,0.00156,70120.0,70102.0,0.00156]
[1773149759946,0.24131577,70121.0,70104.0,0.1704372]
[1773149760154,0.10130561,70121.0,70104.0,0.1704372]
[1773149760468,0.00156,70129.0,70103.0,0.07132362]
[1773149760469,0.16565623,70133.0,70105.0,0.00156]
[1773149760678,0.00156,70132.0,70107.0,0.00462236]
[1773149760908,0.15607614,70134.0,70108.0,0.1704372]
[1773149761217,0.18177626,70134.0,70108.0,0.00156]
[1773149761423,0.16995611,70133.0,70108.0,0.00156]
[1773149761547,0.03,70131.0,70109.0,0.00156]
[1773149761755,0.07285108,70138.0,70109.0,0.00156]
[1773149761756,0.1098464,70150.0,70113.0,0.20848009]
[1773149761962,0.07150199,70144.0,70116.0,0.07593275]
[1773149762173,0.16565623,70143.0,70117.0,0.00156]
[1773149762397,0.16565623,70143.0,70118.0,0.01484469]
[1773149762799,0.03,70138.0,70119.0,0.00156]
[1773149763006,0.03,70136.0,70120.0,0.01328431]
[1773149763210,0.07150235,70144.0,70122.0,0.47591756]
[1773149763491,0.00022001,70144.0,70123.0,0.01328374]
[1773149763693,0.00023,70150.0,70127.0,0.366016]
[1773149763913,0.03,70149.0,70132.0,0.07129413]
[1773149764111,0.03,70149.0,70133.0,0.00156]
[1773149764320,0.03,70149.0,70133.0,0.17096118]
[1773149764515,0.03,70149.0,70134.0,0.00156]
[1773149765013,0.00156,70164.0,70158.0,3e-08]
[1773149765218,0.00156,70164.0,70136.0,0.17402354]
[1773149765219,0.00156,70164.0,70148.0,0.00156]
[1773149765220,0.00011363,70164.0,70148.0,0.00156]
[1773149765426,0.00011363,70164.0,70149.0,0.00156]
[1773149765616,0.0712468,70179.0,70151.0,0.16940118]
[1773149765945,0.17699009,70187.0,70155.0,0.87994575]
[1773149766170,0.16618256,70197.0,70159.0,0.17402354]
[1773149766171,0.03,70177.0,70159.0,0.17402354]
[1773149766377,0.03,70177.0,70160.0,0.105]
[1773149766578,0.03,70177.0,70161.0,0.100209]
[1773149766770,0.03,70177.0,70161.0,0.00156]
[1773149767111,0.03,70179.0,70161.0,0.17096118]
[1773149767464,0.00015,70182.0,70161.0,0.17096118]
[1773149767465,1e-08,70182.0,70164.0,0.00462236]
[1773149767760,0.00022001,70194.0,70173.0,0.405764]
[1773149767960,0.07123217,70193.0,70174.0,0.00156]
[1773149768119,0.03,70192.0,70156.0,0.07126974]
[1773149768319,0.03,70186.0,70157.0,0.00156]
[1773149768523,0.03,70182.0,70153.0,0.07127278]
[1773149768728,0.03,70182.0,70158.0,0.246347]
[1773149768926,0.03,70182.0,70161.0,0.17440118]
[1773149769141,0.03,70180.0,70161.0,0.00011363]
[1773149769360,0.03,70174.0,70152.0,0.00562]
[1773149769654,0.03,70174.0,70144.0,0.24068238]
[1773149769655,0.20699009,70172.0,70133.0,0.07129311]
[1773149769886,0.20699009,70172.0,70134.0,0.01119131]
[1773149770122,0.03,70166.0,70136.0,0.07129006]
[1773149770361,0.03,70163.0,70136.0,0.07129006]
[1773149770606,0.03,70163.0,70137.0,0.01274448]
[1773149770830,0.03,70163.0,70138.0,0.17440118]
[1773149771112,0.0712545,70172.0,70144.0,0.35352]
[1773149771260,0.00023,70175.0,70151.0,0.005]
[1773149771261,0.00011359,70174.0,70151.0,0.005]
[1773149771463,0.03,70173.0,70152.0,0.00156]
[1773149771669,0.03,70173.0,70153.0,0.00156]
[1773149772087,0.10125247,70173.0,70154.0,0.07127177]
[1773149772257,0.03,70171.0,70149.0,0.00156]
[1773149772456,0.03,70167.0,70139.0,0.6991]
[1773149772659,0.03,70167.0,70141.0,0.375679]
[1773149772860,0.03,70167.0,70142.0,0.01306972]
[1773149773058,0.03,70167.0,70139.0,0.005]
[1773149773398,0.00156,70170.0,70137.0,0.07128904]
[1773149773399,0.03,70165.0,70140.0,0.01157513]
[1773149773619,0.03,70165.0,70142.0,0.201757]
[1773149773769,0.03,70165.0,70143.0,0.01196758]
[1773149773969,0.03,70163.0,70145.0,0.07128091]
[1773149774168,0.03,70163.0,70146.0,0.01196638]
[1773149774549,0.03,70163.0,70141.0,0.07128489]
[1773149774759,0.03,70163.0,70120.0,0.19498059]
[1773149774760,0.17699009,70158.0,70111.0,0.005]
[1773149774968,0.03,70146.0,70118.0,0.07130826]
[1773149775144,0.03,70142.0,70119.0,0.01738879]
[1773149775347,0.20699009,70142.0,70119.0,0.01738879]
[1773149775552,0.03,70142.0,70119.0,0.01582878]
[1773149775749,0.03,70142.0,70118.0,0.07130826]
[1773149776074,0.03,70140.0,70120.0,0.07130633]
[1773149776274,0.03,70140.0,70121.0,0.01298587]
[1773149776477,0.03,70140.0,70120.0,0.07130633]
[1773149776674,0.03,70140.0,70119.0,0.07130633]
[1773149776675,0.03,70136.0,70121.0,0.00156]
[1773149776872,0.03,70136.0,70121.0,0.01584159]
[1773149777105,0.19726396,70139.0,70115.0,0.0002]
[1773149777106,0.03,70134.0,70115.0,0.0002]
[1773149777281,0.03,70130.0,70115.0,0.00156]
[1773149777521,0.03,70130.0,70116.0,0.00156]
[1773149777800,0.20699009,70126.0,70111.0,0.00156]
[1773149777945,0.27829073,70126.0,70111.0,0.07287446]
[1773149778151,0.27829073,70126.0,70112.0,0.00156]
[1773149778354,0.27829073,70126.0,70112.0,0.07287446]
[1773149778355,0.03,70126.0,70112.0,0.07287446]
[1773149778550,0.0001135,70134.0,70112.0,0.07287446]
[1773149778551,0.0001135,70134.0,70115.0,0.16940118]
[1773149778775,0.0001135,70134.0,70117.0,0.16940118]
[1773149778979,0.10140571,70134.0,70118.0,0.00156]
[1773149779260,0.10140614,70134.0,70118.0,0.00156]
[1773149779488,0.0301135,70134.0,70118.0,0.00156]
[1773149779828,0.10140627,70134.0,70118.0,0.00156]
[1773149780033,0.10140627,70134.0,70119.0,0.07130734]
[1773149780654,0.10140627,70134.0,70113.0,0.00089529]
[1773149780863,0.20699009,70132.0,70110.0,0.00156]
[1773149781071,0.20699009,70132.0,70100.0,0.17011118]
[1773149781072,0.20699009,70132.0,70101.0,0.07132562]
[1773149781270,0.20699009,70132.0,70102.0,0.00156]
[1773149781482,0.20699009,70132.0,70102.0,0.00060546]
[1773149781697,0.20699009,70132.0,70098.0,0.07132565]
[1773149781698,0.03,70119.0,70089.0,5.38e-05]
[1773149781903,0.00023,70125.0,70068.0,0.17674]
[1773149781904,0.17058964,70114.0,70088.0,0.00156]
[1773149782111,0.17058964,70114.0,70075.0,0.0715811]
[1773149782112,0.03,70111.0,70089.0,0.00156]
[1773149782308,0.03,70111.0,70086.0,0.00156]
[1773149782442,0.07131446,70112.0,70086.0,0.00156]
[1773149782443,0.20058964,70109.0,70086.0,0.00156]
[1773149782835,0.03,70109.0,70086.0,0.00156]
[1773149783234,0.03011344,70109.0,70086.0,0.00156]
[1773149783435,0.03,70108.0,70086.0,0.00156]
[1773149783641,0.03,70108.0,70087.0,0.16940118]
[1773149784317,0.03,70108.0,70086.0,0.005]
[1773149784318,0.03,70108.0,70078.0,0.07134906]
[1773149784319,0.03,70106.0,70078.0,0.07134906]
[1773149784591,0.03,70104.0,70086.0,0.01]
[1773149784940,0.03,70104.0,70076.0,0.07134906]
[1773149784941,0.19902797,70104.0,70076.0,0.07134906]
[1773149785149,0.19902797,70104.0,70047.0,0.17116]
[1773149785151,0.07131955,70107.0,70035.0,0.19703048]
[1773149785152,0.00485512,70096.0,70035.0,0.19703048]
[1773149785350,0.03,70072.0,70035.0,0.16940118]
[1773149785550,0.17079,70100.0,70033.0,0.07151287]
[1773149785551,0.17079,70100.0,70052.0,0.16940118]
[1773149785552,0.00562,70096.0,70052.0,0.16940118]
[1773149785752,0.00562,70096.0,70033.0,0.07151287]
[1773149785753,0.00023,70075.0,70053.0,0.00156]
[1773149785950,0.00023,70075.0,70054.0,0.00156]
[1773149786168,0.00023,70075.0,70047.0,0.16940118]
[1773149786169,0.00023,70075.0,70055.0,0.00156]